[Event "*** Titled Tuesday Blitz"]
[Site "Chess.com"]
[Date "2020.03.03"]
[Round "1"]
[White "xamax2000"]
[Black "Maili15"]
[Result "1-0"]
[WhiteElo "2692"]
[BlackElo "2331"]
[TimeControl "180+1"]
[EndTime "13:06:05 PST"]
[Termination "xamax2000 won by resignation"]

1. c4 {[%clk 0:02:58.7]} 1... e6 {[%clk 0:02:59.7]} 2. Nc3 {[%clk 0:02:58.7]}
2... d5 {[%clk 0:02:59.9]} 3. d4 {[%clk 0:02:59.2]} 3... Nf6 {[%clk 0:02:58.8]}
4. cxd5 {[%clk 0:02:58.6]} 4... exd5 {[%clk 0:02:59.2]} 5. Bg5 {[%clk
0:02:59.2]} 5... Be7 {[%clk 0:02:59.5]} 6. e3 {[%clk 0:02:59.2]} 6... c6 {[%clk
0:02:58.7]} 7. Bd3 {[%clk 0:02:59.2]} 7... O-O {[%clk 0:02:58.4]} 8. Qc2 {[%clk
0:02:58.8]} 8... Nbd7 {[%clk 0:02:58.8]} 9. Nf3 {[%clk 0:02:58.3]} 9... Re8
{[%clk 0:02:58.2]} 10. h3 {[%clk 0:02:58.4]} 10... Nf8 {[%clk 0:02:57.6]} 11.
Bf4 {[%clk 0:02:58.7]} 11... Be6 {[%clk 0:02:47.4]} 12. O-O {[%clk 0:02:40.3]}
12... Rc8 {[%clk 0:02:44.6]} 13. Bh2 {[%clk 0:02:35.9]} 13... a6 {[%clk
0:02:34.7]} 14. Rad1 {[%clk 0:02:31.4]} 14... c5 {[%clk 0:02:22.6]} 15. dxc5
{[%clk 0:02:31]} 15... Bxc5 {[%clk 0:02:22.6]} 16. Qb3 {[%clk 0:02:27.6]} 16...
Qe7 {[%clk 0:02:19.2]} 17. Ne2 {[%clk 0:02:27.3]} 17... Ne4 {[%clk 0:02:11.3]}
18. Nfd4 {[%clk 0:02:25.9]} 18... Ng6 {[%clk 0:02:03]} 19. Nxe6 {[%clk
0:02:21.2]} 19... fxe6 {[%clk 0:01:42]} 20. Bxe4 {[%clk 0:02:21]} 20... dxe4
{[%clk 0:01:42.9]} 21. Bg3 {[%clk 0:02:21.5]} 21... b5 {[%clk 0:01:27.4]} 22.
Rd2 {[%clk 0:02:17.2]} 22... Red8 {[%clk 0:01:23.7]} 23. Rfd1 {[%clk 0:02:17.2]}
23... Rxd2 {[%clk 0:01:15.7]} 24. Rxd2 {[%clk 0:02:18.1]} 24... h5 {[%clk
0:01:04.7]} 25. Rc2 {[%clk 0:02:14.3]} 25... h4 {[%clk 0:01:02.2]} 26. Bh2
{[%clk 0:02:14.2]} 26... Rf8 {[%clk 0:00:57.8]} 27. Nf4 {[%clk 0:02:07.9]} 27...
Nxf4 {[%clk 0:00:54.2]} 28. Bxf4 {[%clk 0:02:08.8]} 28... Kh8 {[%clk 0:00:50.9]}
29. Qc3 {[%clk 0:02:05.6]} 29... Bd6 {[%clk 0:00:44.8]} 30. Bxd6 {[%clk
0:02:05.7]} 30... Qxd6 {[%clk 0:00:44.9]} 31. Rd2 {[%clk 0:02:06.6]} 31... Qe7
{[%clk 0:00:43.4]} 32. Qe5 {[%clk 0:02:06]} 32... Qf6 {[%clk 0:00:37.4]} 33.
Qxe4 {[%clk 0:02:04.4]} 33... e5 {[%clk 0:00:33.7]} 34. f3 {[%clk 0:01:59.7]}
34... Qg5 {[%clk 0:00:29.7]} 35. Rd3 {[%clk 0:01:41.4]} 35... Qg3 {[%clk
0:00:27.8]} 36. Qg4 {[%clk 0:01:38.3]} 36... Qe1+ {[%clk 0:00:19.2]} 37. Kh2
{[%clk 0:01:38.4]} 37... e4 {[%clk 0:00:13.4]} 38. Rd7 {[%clk 0:01:34.7]} 38...
Qg3+ {[%clk 0:00:07.6]} 39. Qxg3 {[%clk 0:01:35]} 39... hxg3+ {[%clk 0:00:08.5]}
40. Kxg3 {[%clk 0:01:35.9]} 40... exf3 {[%clk 0:00:08.6]} 41. gxf3 {[%clk
0:01:36.8]} 41... Rf6 {[%clk 0:00:07.8]} 42. e4 {[%clk 0:01:36.7]} 42... Kg8
{[%clk 0:00:07.3]} 43. f4 {[%clk 0:01:36.7]} 43... Kh7 {[%clk 0:00:06.1]} 44. e5
{[%clk 0:01:36.8]} 44... Re6 {[%clk 0:00:05.5]} 45. Rd6 {[%clk 0:01:36.2]} 1-0

[Event "*** Titled Tuesday Blitz"]
[Site "Chess.com"]
[Date "2020.03.03"]
[Round "1"]
[White "chesstatour"]
[Black "Sergey85Rodchenkov"]
[Result "0-1"]
[WhiteElo "2051"]
[BlackElo "2561"]
[TimeControl "180+1"]
[EndTime "13:06:05 PST"]
[Termination "Sergey85Rodchenkov won on time"]

1. c4 {[%clk 0:02:59.6]} 1... e5 {[%clk 0:02:59]} 2. Nc3 {[%clk 0:02:58.1]} 2...
Nf6 {[%clk 0:02:59]} 3. Nf3 {[%clk 0:02:58.3]} 3... Nc6 {[%clk 0:02:58.5]} 4. d4
{[%clk 0:02:58.3]} 4... exd4 {[%clk 0:02:57.5]} 5. Nxd4 {[%clk 0:02:59.2]} 5...
Bb4 {[%clk 0:02:56.9]} 6. g3 {[%clk 0:02:58.7]} 6... O-O {[%clk 0:02:53.2]} 7.
Bg2 {[%clk 0:02:58.1]} 7... Bxc3+ {[%clk 0:02:51.9]} 8. bxc3 {[%clk 0:02:57.5]}
8... Ne5 {[%clk 0:02:49.6]} 9. c5 {[%clk 0:02:53.9]} 9... Re8 {[%clk 0:02:47.9]}
10. O-O {[%clk 0:02:53]} 10... Qe7 {[%clk 0:02:40.9]} 11. Nb3 {[%clk 0:02:19.5]}
11... Rb8 {[%clk 0:02:30.6]} 12. a4 {[%clk 0:01:59.5]} 12... b6 {[%clk
0:02:26.6]} 13. cxb6 {[%clk 0:01:51.2]} 13... axb6 {[%clk 0:02:25.7]} 14. Ba3
{[%clk 0:01:48.8]} 14... d6 {[%clk 0:02:23.8]} 15. Nd4 {[%clk 0:01:38.8]} 15...
Bd7 {[%clk 0:02:21.9]} 16. Nb5 {[%clk 0:01:22.1]} 16... Bc6 {[%clk 0:02:12.6]}
17. f4 {[%clk 0:00:39.6]} 17... Bxg2 {[%clk 0:01:50.4]} 18. fxe5 {[%clk
0:00:33.9]} 18... Ng4 {[%clk 0:01:40.8]} 19. Rf4 {[%clk 0:00:18.6]} 19... Ne3
{[%clk 0:01:35]} 20. Qd4 {[%clk 0:00:12.3]} 20... Qxe5 {[%clk 0:01:27.1]} 21.
Qxe5 {[%clk 0:00:06]} 21... dxe5 {[%clk 0:01:19.2]} 22. Rf2 {[%clk 0:00:06]}
22... Bc6 {[%clk 0:01:11.9]} 23. Nxc7 {[%clk 0:00:04.8]} 23... Rec8 {[%clk
0:01:09.5]} 24. Nb5 {[%clk 0:00:03.1]} 24... Bxb5 {[%clk 0:01:02.2]} 25. axb5
{[%clk 0:00:04]} 25... Rxc3 {[%clk 0:01:00.4]} 26. Bd6 {[%clk 0:00:03.4]} 26...
Rbc8 {[%clk 0:00:59]} 0-1

[Event "*** Titled Tuesday Blitz"]
[Site "Chess.com"]
[Date "2020.03.03"]
[Round "1"]
[White "Volodar_Murzin"]
[Black "djano"]
[Result "1-0"]
[WhiteElo "2699"]
[BlackElo "2347"]
[TimeControl "180+1"]
[EndTime "13:06:09 PST"]
[Termination "Volodar_Murzin won by resignation"]

1. Nf3 {[%clk 0:02:56.4]} 1... Nf6 {[%clk 0:02:58.6]} 2. g3 {[%clk 0:02:55.3]}
2... d5 {[%clk 0:02:57.2]} 3. Bg2 {[%clk 0:02:56.2]} 3... e6 {[%clk 0:02:57.3]}
4. O-O {[%clk 0:02:56.7]} 4... Be7 {[%clk 0:02:57.6]} 5. d3 {[%clk 0:02:57.2]}
5... O-O {[%clk 0:02:57.5]} 6. Nbd2 {[%clk 0:02:57.8]} 6... d4 {[%clk
0:02:57.7]} 7. c3 {[%clk 0:02:55.8]} 7... c5 {[%clk 0:02:58.1]} 8. cxd4 {[%clk
0:02:55.3]} 8... cxd4 {[%clk 0:02:59]} 9. Nb3 {[%clk 0:02:55.3]} 9... Nc6 {[%clk
0:02:59]} 10. Bd2 {[%clk 0:02:55.5]} 10... e5 {[%clk 0:02:59.2]} 11. Rc1 {[%clk
0:02:55.6]} 11... Bf5 {[%clk 0:02:57.9]} 12. Nh4 {[%clk 0:02:50.3]} 12... Be6
{[%clk 0:02:56.2]} 13. Nf3 {[%clk 0:02:43.9]} 13... Rc8 {[%clk 0:02:51.4]} 14.
Nc5 {[%clk 0:02:42.3]} 14... Bxc5 {[%clk 0:02:45.8]} 15. Rxc5 {[%clk 0:02:43.2]}
15... Qb6 {[%clk 0:02:46.2]} 16. b4 {[%clk 0:02:36.7]} 16... Nxb4 {[%clk
0:02:36.1]} 17. Rxe5 {[%clk 0:02:35.9]} 17... Nxa2 {[%clk 0:02:32.7]} 18. Qa4
{[%clk 0:02:35.6]} 18... Nc3 {[%clk 0:02:31.6]} 19. Qxd4 {[%clk 0:02:35.4]}
19... Rfd8 {[%clk 0:02:09.1]} 20. Qxb6 {[%clk 0:02:30.1]} 20... axb6 {[%clk
0:02:10]} 21. Bxc3 {[%clk 0:02:30.7]} 21... Rxc3 {[%clk 0:02:09.8]} 22. Rb5
{[%clk 0:02:28.6]} 22... Rc2 {[%clk 0:02:03.6]} 23. Re1 {[%clk 0:02:26.4]} 23...
Nd5 {[%clk 0:01:54.3]} 24. Nd4 {[%clk 0:02:21.1]} 24... Rc5 {[%clk 0:01:54.2]}
25. Nxe6 {[%clk 0:02:19.8]} 25... fxe6 {[%clk 0:01:55.1]} 26. Rb2 {[%clk
0:02:18.9]} 26... b5 {[%clk 0:01:52.3]} 27. d4 {[%clk 0:02:07.7]} 27... Rc4
{[%clk 0:01:52.5]} 28. Rxb5 {[%clk 0:02:07.6]} 28... Rxd4 {[%clk 0:01:52.9]} 29.
Rxb7 {[%clk 0:02:08.2]} 29... Nc3 {[%clk 0:01:48.5]} 30. Bf3 {[%clk 0:02:04.9]}
30... e5 {[%clk 0:01:46.6]} 31. Rc7 {[%clk 0:01:52.4]} 31... Nb5 {[%clk
0:01:37.8]} 32. Rc5 {[%clk 0:01:44.2]} 32... Rd1 {[%clk 0:01:31.2]} 33. Rxd1
{[%clk 0:01:40.7]} 33... Rxd1+ {[%clk 0:01:32.1]} 34. Kg2 {[%clk 0:01:41.4]}
34... Nd4 {[%clk 0:01:32.1]} 35. Rxe5 {[%clk 0:01:39.7]} 35... Kf7 {[%clk
0:01:29]} 36. Rd5 {[%clk 0:01:31.1]} 36... Rd2 {[%clk 0:01:12]} 37. e3 {[%clk
0:01:24.7]} 37... Nxf3 {[%clk 0:01:11.6]} 38. Rf5+ {[%clk 0:01:24.9]} 38... Ke6
{[%clk 0:01:11.4]} 39. Rxf3 {[%clk 0:01:25.8]} 39... g6 {[%clk 0:01:10.6]} 40.
h4 {[%clk 0:01:25.5]} 40... h5 {[%clk 0:01:09]} 41. Rf4 {[%clk 0:01:25.3]} 41...
Ke5 {[%clk 0:01:09.3]} 42. Kf3 {[%clk 0:01:25.1]} 42... Rb2 {[%clk 0:01:05.6]}
43. Ra4 {[%clk 0:01:23.7]} 43... Rb6 {[%clk 0:01:04.6]} 44. Ra5+ {[%clk
0:01:23]} 44... Kf6 {[%clk 0:01:05.1]} 45. Kf4 {[%clk 0:01:23]} 45... Rb4+
{[%clk 0:01:05.3]} 46. e4 {[%clk 0:01:23.2]} 46... Rc4 {[%clk 0:01:06.2]} 47. f3
{[%clk 0:01:23.2]} 47... Rc3 {[%clk 0:01:05.1]} 48. Ra6+ {[%clk 0:01:22.9]}
48... Kg7 {[%clk 0:01:05.2]} 49. e5 {[%clk 0:01:21.5]} 49... Rc4+ {[%clk
0:01:05.5]} 50. Kg5 {[%clk 0:01:21.2]} 50... Rc3 {[%clk 0:01:02.6]} 51. Rxg6+
{[%clk 0:01:18.5]} 1-0

[Event "*** Titled Tuesday Blitz"]
[Site "Chess.com"]
[Date "2020.03.03"]
[Round "1"]
[White "masrahi"]
[Black "Alex_Molchanov"]
[Result "0-1"]
[WhiteElo "2118"]
[BlackElo "2574"]
[TimeControl "180+1"]
[EndTime "13:06:15 PST"]
[Termination "Alex_Molchanov won by resignation"]

1. c4 {[%clk 0:02:37.4]} 1... e6 {[%clk 0:02:56]} 2. Nc3 {[%clk 0:02:37]} 2...
d5 {[%clk 0:02:40.8]} 3. d4 {[%clk 0:02:35.4]} 3... Be7 {[%clk 0:02:38.9]} 4.
cxd5 {[%clk 0:02:35.2]} 4... exd5 {[%clk 0:02:38.3]} 5. Bf4 {[%clk 0:02:35.8]}
5... c6 {[%clk 0:02:38.7]} 6. e3 {[%clk 0:02:35.3]} 6... Bf5 {[%clk 0:02:38.6]}
7. Nge2 {[%clk 0:02:33.6]} 7... Nf6 {[%clk 0:02:28.6]} 8. Ng3 {[%clk 0:02:32.5]}
8... Be6 {[%clk 0:02:28.8]} 9. Bd3 {[%clk 0:02:28.9]} 9... Nbd7 {[%clk
0:02:23.7]} 10. O-O {[%clk 0:02:27.4]} 10... Nb6 {[%clk 0:02:18.5]} 11. Rb1
{[%clk 0:02:21.7]} 11... a5 {[%clk 0:02:10.2]} 12. a3 {[%clk 0:02:19.7]} 12...
O-O {[%clk 0:02:00.9]} 13. Nf5 {[%clk 0:02:15.2]} 13... Bxf5 {[%clk 0:01:58.9]}
14. Bxf5 {[%clk 0:02:16.1]} 14... Nc4 {[%clk 0:01:56.8]} 15. Qe2 {[%clk
0:02:04.5]} 15... Re8 {[%clk 0:01:47]} 16. f3 {[%clk 0:02:01.2]} 16... Bf8
{[%clk 0:01:36.7]} 17. Rbd1 {[%clk 0:01:52.4]} 17... Bd6 {[%clk 0:01:32.6]} 18.
Bg5 {[%clk 0:01:26.1]} 18... h6 {[%clk 0:01:31.5]} 19. Bh4 {[%clk 0:01:25.3]}
19... Bf4 {[%clk 0:01:25.8]} 20. Bf2 {[%clk 0:01:10.9]} 20... Nxe3 {[%clk
0:01:18.3]} 21. Bxe3 {[%clk 0:00:57.8]} 21... Bxe3+ {[%clk 0:01:19.2]} 22. Kh1
{[%clk 0:00:58.1]} 22... Bxd4 {[%clk 0:01:16.3]} 23. Qd2 {[%clk 0:00:45.5]}
23... Bxc3 {[%clk 0:01:12.9]} 24. Qxc3 {[%clk 0:00:39.4]} 24... Qb6 {[%clk
0:01:07.4]} 25. Bb1 {[%clk 0:00:34.6]} 25... Re3 {[%clk 0:01:01.1]} 26. Qc2
{[%clk 0:00:34.5]} 26... Rae8 {[%clk 0:01:00.7]} 27. g4 {[%clk 0:00:29.5]} 27...
Re2 {[%clk 0:00:57.4]} 28. Rd2 {[%clk 0:00:20.5]} 28... Qe3 {[%clk 0:00:47.5]}
29. Rxe2 {[%clk 0:00:19.2]} 29... Qxe2 {[%clk 0:00:48.4]} 30. Qf5 {[%clk
0:00:17.9]} 0-1

[Event "*** Titled Tuesday Blitz"]
[Site "Chess.com"]
[Date "2020.03.03"]
[Round "1"]
[White "aridannie"]
[Black "Gordima"]
[Result "0-1"]
[WhiteElo "2420"]
[BlackElo "2790"]
[TimeControl "180+1"]
[EndTime "13:06:18 PST"]
[Termination "Gordima won by resignation"]

1. e4 {[%clk 0:03:00]} 1... e5 {[%clk 0:03:00]} 2. Nf3 {[%clk 0:02:59.5]} 2...
Nc6 {[%clk 0:03:00.4]} 3. d4 {[%clk 0:02:59]} 3... exd4 {[%clk 0:03:00.2]} 4.
Nxd4 {[%clk 0:02:59.9]} 4... Bc5 {[%clk 0:03:00.8]} 5. Nb3 {[%clk 0:02:59.6]}
5... Bb6 {[%clk 0:03:00.9]} 6. Nc3 {[%clk 0:02:57.8]} 6... d6 {[%clk 0:03:01.2]}
7. Qe2 {[%clk 0:02:55.5]} 7... Nge7 {[%clk 0:02:56.7]} 8. Bf4 {[%clk 0:02:43.6]}
8... O-O {[%clk 0:02:55.2]} 9. O-O-O {[%clk 0:02:39.3]} 9... f6 {[%clk 0:02:49]}
10. Kb1 {[%clk 0:02:33.5]} 10... a5 {[%clk 0:02:45.2]} 11. Na4 {[%clk
0:02:06.9]} 11... Ba7 {[%clk 0:02:41.8]} 12. Qd2 {[%clk 0:01:55.9]} 12... Be6
{[%clk 0:02:36]} 13. f3 {[%clk 0:01:49.2]} 13... Ng6 {[%clk 0:02:22.7]} 14. Bg3
{[%clk 0:01:46.3]} 14... Qe7 {[%clk 0:02:19.2]} 15. Nc3 {[%clk 0:01:32]} 15...
Qf7 {[%clk 0:02:09.9]} 16. Nd5 {[%clk 0:01:21.8]} 16... a4 {[%clk 0:02:04.8]}
17. Nc1 {[%clk 0:01:19]} 17... Kh8 {[%clk 0:01:44.1]} 18. h4 {[%clk 0:01:06.8]}
18... Nge5 {[%clk 0:01:42]} 19. h5 {[%clk 0:00:58.4]} 19... h6 {[%clk
0:01:41.9]} 20. Bf2 {[%clk 0:00:42.6]} 20... Bxf2 {[%clk 0:01:35.5]} 21. Qxf2
{[%clk 0:00:43.5]} 21... a3 {[%clk 0:01:22.5]} 22. b3 {[%clk 0:00:42.9]} 22...
f5 {[%clk 0:01:23.1]} 23. Bd3 {[%clk 0:00:30.5]} 23... Bxd5 {[%clk 0:01:10.2]}
24. exd5 {[%clk 0:00:30]} 24... Nb4 {[%clk 0:01:10.9]} 25. Be2 {[%clk
0:00:26.2]} 25... Nxd5 {[%clk 0:01:08.9]} 26. Ka1 {[%clk 0:00:22]} 26... Nc3
{[%clk 0:01:07.4]} 27. Rdg1 {[%clk 0:00:20.9]} 27... c5 {[%clk 0:01:05.7]} 28.
Nd3 {[%clk 0:00:20.8]} 28... Qf6 {[%clk 0:01:04.3]} 29. Nf4 {[%clk 0:00:19.7]}
29... Nxe2 {[%clk 0:00:59.3]} 30. Qxe2 {[%clk 0:00:14.8]} 30... Nd3+ {[%clk
0:00:58.4]} 0-1

[Event "*** Titled Tuesday Blitz"]
[Site "Chess.com"]
[Date "2020.03.03"]
[Round "1"]
[White "Hadza_3"]
[Black "Bulldog167"]
[Result "0-1"]
[WhiteElo "2390"]
[BlackElo "2747"]
[TimeControl "180+1"]
[EndTime "13:06:26 PST"]
[Termination "Bulldog167 won by resignation"]

1. e4 {[%clk 0:03:00.4]} 1... e6 {[%clk 0:02:58]} 2. Nf3 {[%clk 0:02:56.9]} 2...
d5 {[%clk 0:02:58.2]} 3. e5 {[%clk 0:02:56.8]} 3... b6 {[%clk 0:02:52]} 4. g3
{[%clk 0:02:56.5]} 4... c5 {[%clk 0:02:49.2]} 5. Bg2 {[%clk 0:02:56.9]} 5... Nc6
{[%clk 0:02:49.1]} 6. O-O {[%clk 0:02:56.7]} 6... Nge7 {[%clk 0:02:45.2]} 7. d3
{[%clk 0:02:56.9]} 7... g6 {[%clk 0:02:42.7]} 8. Qe2 {[%clk 0:02:52.7]} 8... Bg7
{[%clk 0:02:42.6]} 9. h4 {[%clk 0:02:51.4]} 9... h6 {[%clk 0:02:38.9]} 10. Re1
{[%clk 0:02:46.2]} 10... Qc7 {[%clk 0:02:33]} 11. c4 {[%clk 0:02:38.3]} 11...
Bb7 {[%clk 0:02:01.9]} 12. Nc3 {[%clk 0:02:36.3]} 12... O-O {[%clk 0:01:55.1]}
13. Nb5 {[%clk 0:02:08.8]} 13... Qd7 {[%clk 0:01:54.8]} 14. Nd6 {[%clk
0:02:06.7]} 14... Nxe5 {[%clk 0:01:44.2]} 15. Nxb7 {[%clk 0:01:57.9]} 15...
Nxf3+ {[%clk 0:01:43.3]} 16. Qxf3 {[%clk 0:01:24.5]} 16... Qxb7 {[%clk 0:01:43]}
17. h5 {[%clk 0:01:25]} 17... g5 {[%clk 0:01:41]} 18. Rb1 {[%clk 0:01:21.7]}
18... Qd7 {[%clk 0:01:37.3]} 19. b3 {[%clk 0:01:18.6]} 19... Rad8 {[%clk
0:01:37.1]} 20. Qe2 {[%clk 0:01:12.3]} 20... dxc4 {[%clk 0:01:18.5]} 21. dxc4
{[%clk 0:01:13.2]} 21... Qd3 {[%clk 0:01:18.5]} 22. Qxd3 {[%clk 0:00:37.8]}
22... Rxd3 {[%clk 0:01:19.4]} 23. Bf1 {[%clk 0:00:38.1]} 23... Rd7 {[%clk
0:01:16.9]} 24. f4 {[%clk 0:00:38.4]} 24... gxf4 {[%clk 0:01:06.7]} 25. Bxf4
{[%clk 0:00:36.3]} 25... Nf5 {[%clk 0:01:01.4]} 26. g4 {[%clk 0:00:34.1]} 26...
Nd4 {[%clk 0:01:00.3]} 27. Bg2 {[%clk 0:00:33.8]} 27... Rfd8 {[%clk 0:00:49.4]}
28. Kh1 {[%clk 0:00:33.1]} 28... Nc2 {[%clk 0:00:45.9]} 29. g5 {[%clk 0:00:31]}
29... Nxe1 {[%clk 0:00:43.5]} 30. Rxe1 {[%clk 0:00:29.7]} 30... Rd1 {[%clk
0:00:43.6]} 0-1

[Event "*** Titled Tuesday Blitz"]
[Site "Chess.com"]
[Date "2020.03.03"]
[Round "1"]
[White "PNEPaul"]
[Black "talman67"]
[Result "1-0"]
[WhiteElo "1922"]
[BlackElo "2528"]
[TimeControl "180+1"]
[EndTime "13:06:28 PST"]
[Termination "PNEPaul won by resignation"]

1. e4 {[%clk 0:03:00.9]} 1... e5 {[%clk 0:03:00.2]} 2. Nf3 {[%clk 0:03:00.3]}
2... Nc6 {[%clk 0:03:00.6]} 3. Bc4 {[%clk 0:03:00]} 3... Bc5 {[%clk 0:02:59.8]}
4. b4 {[%clk 0:02:59.3]} 4... Bxb4 {[%clk 0:02:57.6]} 5. c3 {[%clk 0:02:59.4]}
5... Ba5 {[%clk 0:02:56.3]} 6. d4 {[%clk 0:02:59.3]} 6... b5 {[%clk 0:02:56.7]}
7. Bxb5 {[%clk 0:02:34.2]} 7... Nxd4 {[%clk 0:02:56.9]} 8. Nxd4 {[%clk
0:02:29.8]} 8... exd4 {[%clk 0:02:57.8]} 9. Qxd4 {[%clk 0:02:29.7]} 9... Qf6
{[%clk 0:02:58.4]} 10. e5 {[%clk 0:02:08.5]} 10... Qb6 {[%clk 0:02:57.8]} 11.
Qd3 {[%clk 0:02:01]} 11... Ne7 {[%clk 0:02:46.4]} 12. Ba3 {[%clk 0:01:57.6]}
12... Qe6 {[%clk 0:02:40.7]} 13. O-O {[%clk 0:01:53.1]} 13... Qd5 {[%clk
0:02:13.4]} 14. Qe2 {[%clk 0:01:49.3]} 14... Bb7 {[%clk 0:02:11.6]} 15. f3
{[%clk 0:01:43.3]} 15... Qe6 {[%clk 0:01:52.1]} 16. Bc4 {[%clk 0:01:34.8]} 16...
Bd5 {[%clk 0:01:49.6]} 17. Bxd5 {[%clk 0:01:24.7]} 17... Nxd5 {[%clk 0:01:45.4]}
18. c4 {[%clk 0:01:11.7]} 18... Nf4 {[%clk 0:01:21]} 19. Qe4 {[%clk 0:01:09.1]}
19... Ne2+ {[%clk 0:00:13]} 20. Qxe2 {[%clk 0:01:07.9]} 20... Bb4 {[%clk
0:00:12.7]} 21. Bxb4 {[%clk 0:01:05.6]} 21... Qb6+ {[%clk 0:00:12.7]} 22. Kh1
{[%clk 0:00:59.4]} 22... Qxb4 {[%clk 0:00:13.2]} 23. Nd2 {[%clk 0:00:56.5]}
23... O-O {[%clk 0:00:13.5]} 24. Ne4 {[%clk 0:00:55.5]} 24... Rfe8 {[%clk
0:00:12.9]} 25. f4 {[%clk 0:00:54.1]} 25... Rab8 {[%clk 0:00:12.7]} 26. Rad1
{[%clk 0:00:48.5]} 26... d6 {[%clk 0:00:11.2]} 27. Ng5 {[%clk 0:00:42.7]} 27...
dxe5 {[%clk 0:00:07.2]} 28. Qh5 {[%clk 0:00:41.4]} 28... Re7 {[%clk 0:00:08.1]}
29. Qxh7+ {[%clk 0:00:40.7]} 1-0

[Event "*** Titled Tuesday Blitz"]
[Site "Chess.com"]
[Date "2020.03.03"]
[Round "1"]
[White "vladislavkovalev"]
[Black "kleopl"]
[Result "1-0"]
[WhiteElo "2908"]
[BlackElo "2486"]
[TimeControl "180+1"]
[EndTime "13:06:29 PST"]
[Termination "vladislavkovalev won by resignation"]

1. e4 {[%clk 0:02:58]} 1... c6 {[%clk 0:02:58.9]} 2. d4 {[%clk 0:02:57.9]} 2...
d5 {[%clk 0:02:59.1]} 3. exd5 {[%clk 0:02:58.1]} 3... cxd5 {[%clk 0:02:58.9]} 4.
Bd3 {[%clk 0:02:58.8]} 4... Nc6 {[%clk 0:02:57.1]} 5. c3 {[%clk 0:02:59.5]} 5...
Nf6 {[%clk 0:02:56.9]} 6. h3 {[%clk 0:02:59.7]} 6... e5 {[%clk 0:02:54.2]} 7.
dxe5 {[%clk 0:03:00.6]} 7... Nxe5 {[%clk 0:02:55]} 8. Nf3 {[%clk 0:03:01.3]}
8... Nxd3+ {[%clk 0:02:52.6]} 9. Qxd3 {[%clk 0:03:02.2]} 9... Be7 {[%clk
0:02:52.9]} 10. O-O {[%clk 0:03:02.5]} 10... O-O {[%clk 0:02:52.9]} 11. Bg5
{[%clk 0:02:59.7]} 11... Qb6 {[%clk 0:02:51.8]} 12. Qc2 {[%clk 0:02:41.9]} 12...
h6 {[%clk 0:02:48.2]} 13. Be3 {[%clk 0:02:41.6]} 13... Qc7 {[%clk 0:02:45.8]}
14. Nbd2 {[%clk 0:02:41.9]} 14... Rd8 {[%clk 0:02:43.5]} 15. Nd4 {[%clk
0:02:42]} 15... a6 {[%clk 0:02:42]} 16. Rae1 {[%clk 0:02:36.3]} 16... Bd6 {[%clk
0:02:39.4]} 17. Nf5 {[%clk 0:02:32.2]} 17... Bf8 {[%clk 0:02:32.6]} 18. Bd4
{[%clk 0:02:23.2]} 18... Nh7 {[%clk 0:02:14]} 19. Nf3 {[%clk 0:02:14.1]} 19...
Qf4 {[%clk 0:02:07.4]} 20. Ng3 {[%clk 0:01:37.7]} 20... Ng5 {[%clk 0:02:04.7]}
21. Nxg5 {[%clk 0:01:35.5]} 21... Qxg5 {[%clk 0:02:05.6]} 22. Re5 {[%clk
0:01:31.6]} 22... Qg6 {[%clk 0:02:01.7]} 23. Qxg6 {[%clk 0:01:31.1]} 23... fxg6
{[%clk 0:02:02.6]} 24. Rfe1 {[%clk 0:01:31.8]} 24... b5 {[%clk 0:01:57.4]} 25.
a3 {[%clk 0:01:31.7]} 25... Bb7 {[%clk 0:01:56.4]} 26. Re6 {[%clk 0:01:31.2]}
26... Kh7 {[%clk 0:01:53.2]} 27. Re7 {[%clk 0:01:30.6]} 27... Bc8 {[%clk
0:01:46.3]} 28. Rc7 {[%clk 0:01:26.8]} 28... Rd7 {[%clk 0:01:41.4]} 29. Rxd7
{[%clk 0:01:09.6]} 29... Bxd7 {[%clk 0:01:42.3]} 30. Re5 {[%clk 0:01:10.2]}
30... Bc6 {[%clk 0:01:38.2]} 31. Re6 {[%clk 0:01:10.6]} 31... Rc8 {[%clk
0:01:38]} 32. Ne2 {[%clk 0:01:06]} 32... g5 {[%clk 0:01:36.2]} 33. Nc1 {[%clk
0:00:56.6]} 33... Kg8 {[%clk 0:01:35.1]} 34. Nd3 {[%clk 0:00:56.6]} 34... a5
{[%clk 0:01:28.2]} 35. Ne5 {[%clk 0:00:54.6]} 35... Be8 {[%clk 0:01:28.1]} 36.
Ra6 {[%clk 0:00:49.6]} 36... a4 {[%clk 0:01:27.5]} 37. Ra7 {[%clk 0:00:48.9]}
37... Rd8 {[%clk 0:01:18.9]} 38. f3 {[%clk 0:00:46]} 38... Rc8 {[%clk
0:01:14.1]} 39. Kf2 {[%clk 0:00:45.8]} 39... Rd8 {[%clk 0:01:14.3]} 40. Ke3
{[%clk 0:00:46.1]} 40... Rc8 {[%clk 0:01:14.8]} 41. Nd7 {[%clk 0:00:42.4]} 41...
Bxd7 {[%clk 0:01:07.6]} 42. Rxd7 {[%clk 0:00:43.3]} 42... Re8+ {[%clk
0:00:59.8]} 43. Kd2 {[%clk 0:00:43.3]} 1-0

[Event "*** Titled Tuesday Blitz"]
[Site "Chess.com"]
[Date "2020.03.03"]
[Round "1"]
[White "Jbd735"]
[Black "Msb2"]
[Result "0-1"]
[WhiteElo "2472"]
[BlackElo "2865"]
[TimeControl "180+1"]
[EndTime "13:06:29 PST"]
[Termination "Msb2 won on time"]

1. e4 {[%clk 0:03:00.9]} 1... e6 {[%clk 0:02:57.8]} 2. d4 {[%clk 0:03:00.5]}
2... d5 {[%clk 0:02:58.7]} 3. Nc3 {[%clk 0:03:00.3]} 3... Nf6 {[%clk 0:02:59]}
4. Bg5 {[%clk 0:02:59.5]} 4... dxe4 {[%clk 0:02:54.5]} 5. Nxe4 {[%clk
0:02:59.5]} 5... Be7 {[%clk 0:02:55.2]} 6. Bxf6 {[%clk 0:02:59.7]} 6... Bxf6
{[%clk 0:02:56]} 7. Nf3 {[%clk 0:02:59.1]} 7... Nd7 {[%clk 0:02:56.7]} 8. Bd3
{[%clk 0:02:57.2]} 8... c5 {[%clk 0:02:56.2]} 9. Nxf6+ {[%clk 0:02:45.2]} 9...
Nxf6 {[%clk 0:02:52.9]} 10. dxc5 {[%clk 0:02:40.6]} 10... Qa5+ {[%clk 0:02:53]}
11. c3 {[%clk 0:02:40.8]} 11... Qxc5 {[%clk 0:02:53.2]} 12. O-O {[%clk
0:02:38.3]} 12... O-O {[%clk 0:02:52]} 13. Qe2 {[%clk 0:02:37.3]} 13... b6
{[%clk 0:02:50.6]} 14. Ne5 {[%clk 0:02:31.1]} 14... Bb7 {[%clk 0:02:41.1]} 15.
Rfe1 {[%clk 0:02:29.5]} 15... Rad8 {[%clk 0:02:39.5]} 16. Rad1 {[%clk
0:02:10.3]} 16... Rd5 {[%clk 0:02:38]} 17. c4 {[%clk 0:01:37.7]} 17... Rd4
{[%clk 0:02:32.4]} 18. b4 {[%clk 0:01:32.8]} 18... Qd6 {[%clk 0:02:32.1]} 19.
Bc2 {[%clk 0:01:25.1]} 19... Rxd1 {[%clk 0:02:28.8]} 20. Rxd1 {[%clk 0:01:24.8]}
20... Qxb4 {[%clk 0:02:29]} 21. g4 {[%clk 0:01:04.3]} 21... h6 {[%clk
0:02:25.4]} 22. h4 {[%clk 0:01:03.4]} 22... Qc3 {[%clk 0:01:24.2]} 23. f3 {[%clk
0:00:36.1]} 23... g6 {[%clk 0:00:59.6]} 24. g5 {[%clk 0:00:27]} 24... hxg5
{[%clk 0:00:58.6]} 25. hxg5 {[%clk 0:00:27.9]} 25... Ne4 {[%clk 0:00:54.4]} 26.
Nxg6 {[%clk 0:00:10.6]} 26... Nxg5 {[%clk 0:00:47.1]} 27. Ne7+ {[%clk
0:00:07.1]} 27... Kg7 {[%clk 0:00:45.9]} 28. Qg2 {[%clk 0:00:03.2]} 28... Qf6
{[%clk 0:00:45.8]} 0-1